Cogmind - Beta 10.2 *** ADVENTURER MODE // 2020.11.07 @ 19:58:57 // Halloween2020/ForbiddenLore Player: STB Result: Destroyed by G-47 Trooper with Particle Gun Performance ------------- Evolutions (2) 1000 Regions Visited (3) 600 Robots Destroyed (88) 440 Value Destroyed (2539) 2539 Prototype IDs (2) 40 Alien Tech Used (0) 0 Bonus (0) 0 TOTAL SCORE: 4619 Bonus ------- None Cogmind --------- Core Integrity 0/550 Matter 300/300 Energy 100/100 System Corruption 7% Temperature Cool (9) Movement Core (550) Ox10 Location -8/Materials Parts ------- > --- POWER (2) -------- (None) > --- PROPULSION (3) --- (None) > --- UTILITY (3) ------ High-capacity Storage Unit > --- WEAPON (3) ------- (None) > --- INVENTORY (12) --- Advanced Sensor Array Signal Interpreter Improved Terrain Scanner Seismic Analyzer Hacking Suite Peak State ------------ > --- POWER ------------ Improved Deuterium Engine Improved Deuterium Engine > --- PROPULSION ------- Light Treads Advanced Treads Aluminum Leg > --- UTILITY ---------- Improved Cooling System High-capacity Storage Unit Improved Light Armor Plating > --- WEAPON ----------- Beam Rifle Heavy Assault Rifle Hammer > --- INVENTORY -------- Aluminum Leg Advanced Sensor Array Signal Interpreter Improved Terrain Scanner Seismic Analyzer Hacking Suite Heavy Assault Rifle [Rating: 27] Favorites ----------- Power Improved Ion Engine Engine Improved Ion Engine Power Core Light Nuclear Core Propulsion Light Treads Treads Light Treads Leg Aluminum Leg Utility High-capacity Storage Unit Device Improved Heat Sink Storage High-capacity Storage Unit Protection Hardened Light Armor Plating Weapon Medium Laser Energy Gun Medium Laser Ballistic Gun Heavy Assault Rifle Impact Weapon Hammer Slashing Weapon Mining Claw Build | -11 -10 -9 -8 ------- Run | Scr Mat Mat Mat Slots Evolved 4 | . . 2 2 Power 1 | . . . 1 Propulsion 1 | . . . 1 Utility 1 | . . 1 . Weapon 1 | . . 1 . Parts Attached 92 | 9 9 41 33 Power 9 | 1 1 1 6 Engine 7 | 1 1 1 4 Core 2 | . . . 2 Reactor . | . . . . Propulsion 22 | 4 2 6 10 Treads 16 | 2 2 6 6 Leg 6 | 2 . . 4 Wheel . | . . . . Hover . | . . . . Flight . | . . . . Utility 14 | 2 4 6 2 Device 7 | 1 3 2 1 Storage 2 | 1 1 . . Processor . | . . . . Hackware . | . . . . Protection 5 | . . 4 1 Artifact . | . . . . Weapon 47 | 2 2 28 15 Energy Gun 37 | 1 2 24 10 Energy Cannon . | . . . . Ballistic Gun 5 | 1 . . 4 Ballistic Cannon . | . . . . Launcher . | . . . . Special Weapon . | . . . . Impact Weapon 1 | . . . 1 Slashing Weapon 4 | . . 4 . Piercing Weapon . | . . . . Special Melee Weapon . | . . . . Unidentified Prototypes 1 | . . 1 . Parts Lost 28 | . . 3 25 Power 4 | . . . 4 Propulsion 6 | . . . 6 Utility 4 | . . 1 3 Weapon 14 | . . 2 12 Highest Loss Streak 8 | . . 1 8 Average Slot Usage (%) 96 | . 98 98 90 Engine 12 | . 13 11 15 Treads 19 | . 27 21 10 Leg 4 | . . . 14 Device 11 | . 13 10 8 Storage 11 | . 14 11 9 Protection 7 | . . 10 8 Energy Gun 20 | . 26 23 11 Ballistic Gun 2 | . 1 . 5 Impact Weapon 1 | . . . 5 Slashing Weapon 3 | . . 9 . Naked Turns . | . . . . Heaviest Build 65 | 13 42 54 65 Greatest Support 66 | 40 40 46 66 Greatest Overweight (x) 6 | 2 2 2 6 Average Overweight (x) 1 | . 1 1 1 Largest Inventory Capacity 14 | 6 14 12 12 Average Capacity 11 | 5 11 12 12 Most Carried 12 | 5 11 12 9 Average Carried 7 | 1 7 9 5 Final Capacity 12 | 6 12 12 12 Final Carried 10 | 2 10 10 5 Class Distribution -------------------- 72% | Mutant 15% | Scavenger-Mutant 10% | Tank Dominant Class ---------------- Mutant | -10/Materials Mutant | -9/Materials Scavenger-Mutant | -8/Materials Resources | -11 -10 -9 -8 ----------- Run | Scr Mat Mat Mat Matter Collected 1315 | 317 115 396 487 Remotely . | . . . . Salvage Created 3452 | 116 487 1261 1588 Parts 182 | 13 37 71 61 Haulers Intercepted . | . . . . Recyclers Shooed 3 | 1 1 1 . Parts Field Recycled . | . . . . Retrieved Matter . | . . . . Parts Self-Destructed . | . . . . Prevented . | . . . . Kills | -11 -10 -9 -8 ------- Run | Scr Mat Mat Mat Combat Hostiles Destroyed 61 | . 11 24 26 Melee 8 | . . 7 1 Guns 49 | . 11 16 22 AOE 1 | . . 1 . Classes Destroyed 12 | 3 3 4 2 Worker 4 | 1 2 . 1 Builder 1 | . . 1 . Tunneler 5 | 3 . 1 1 Recycler 4 | 1 . 1 2 Operator 1 | . . . 1 Watcher 12 | . 2 5 5 Swarmer 12 | . 3 4 5 Grunt 31 | . 8 9 14 Brawler 1 | . . 1 . Duelist 2 | . . 1 1 Sentry 14 | . . 9 5 Hunter 1 | . . . 1 Best Kill Streak 8 | 4 5 4 8 Combat Bots Only 5 | . 5 4 5 Max Kills in Single Turn 2 | 1 2 1 2 Gunslinging 1 | . 1 . 1 Exploded 1 | . . 1 . Melee 1 | . . 1 1 Uniques/NPCs Destroyed . | . . . . Combat | -11 -10 -9 -8 -------- Run | Scr Mat Mat Mat Damage Taken 4402 | . 253 985 3164 Core 722 | . 21 148 553 Absorbed by Shields . | . . . . Core Remaining (%) 84 | 100 91 63 . Volleys Fired 229 | 9 35 54 131 Largest 3 | 2 2 3 3 Hottest 156 | 60 100 146 156 Shots Fired 428 | 18 70 115 225 Gun 428 | 18 70 115 225 Cannon . | . . . . Launcher . | . . . . Special . | . . . . Kinetic 95 | 9 9 . 77 Thermal 239 | 9 61 68 101 Explosive . | . . . . Electromagnetic 94 | . . 47 47 Robot Hit Streak 27 | 9 15 27 23 Robot Miss Streak 3 | 1 2 3 3 Penetration Max . | . . . . Secondary Targets 4 | . 1 1 2 Max Gunslinging Chain 1 | . 1 1 1 Shots Hit Robots 402 | 16 49 113 224 Core Hits 173 | 6 24 53 90 Critical Hits 1 | . . . 1 Critical Kills . | . . . . Critical Parts Destroyed . | . . . . Melee Attacks 66 | . . 22 44 Impact 44 | . . . 44 Slashing 22 | . . 22 . Piercing . | . . . . Sneak Attacks 2 | . . 1 1 Combat Hostiles . | . . . . Follow-up Attacks . | . . . . Damage Inflicted 6162 | 195 584 1983 3400 Guns 4746 | 195 563 1383 2605 Cannons . | . . . . Explosions 205 | . . 124 81 Melee 1179 | . . 466 713 Ramming 32 | . 21 10 1 Kinetic 906 | 106 75 . 725 Thermal 2635 | 89 488 813 1245 Explosive . | . . . . Electromagnetic 1410 | . . 694 716 Impact 713 | . . . 713 Slashing 466 | . . 466 . Piercing . | . . . . Highest Corruption 7 | . 1 . 7 Average Corruption 1 | . 1 . 3 Corruption Purged . | . . . . Effects 6 | . 6 . . Message Errors 6 | . 6 . . Overload Shots . | . . . . Overflow Damage 39 | . . 13 26 Projectiles . | . . . . Explosions 13 | . . 13 . Melee 26 | . . . 26 Knockbacks 2 | . . . 2 Impact 2 | . . . 2 Kinetic . | . . . . Secondary . | . . . . Self-Inflicted Damage 29 | . . 29 . Shots 1 | . . 1 . Rammed 7 | . 5 1 1 Targets Rammed 9 | . 7 1 1 Kicked . | . . . . Crushed 2 | . 2 . . Highest Temperature 266 | . 36 266 63 Average Temperature 37 | . 16 53 19 Received Heat Transfer 2328 | . 156 399 1773 Effects 2 | . . 2 . Interference 2 | . . 2 . Siege Activations . | . . . . Robots Corrupted 1 | . . . 1 Combat Hostiles 1 | . . . 1 Parts Fried 8 | . . 4 4 Impact Corruptions 3 | . . . 3 Robots Melted 1 | . . . 1 Combat Hostiles 1 | . . . 1 Parts Melted 10 | . 2 2 6 Heat Transferred 6754 | 200 1396 2074 3084 Parts Sabotaged . | . . . . Parts Stolen . | . . . . Parts Stripped . | . . . . Power Chain Reactions 3 | . . 2 1 Missiles Intercepted . | . . . . Alert | -11 -10 -9 -8 ------- Run | Scr Mat Mat Mat Peak Influence 230 | 25 155 230 213 Initial 13 | . 13 12 . Average 68 | 8 58 78 68 Maximum Alert Level 1 | . . 1 1 Low Security (%) 97 | 100 100 97 96 Level 1 2 | . . 2 3 Level 2 . | . . . . Level 3 . | . . . . Level 4 . | . . . . Level 5 . | . . . . High Security . | . . . . Max Security . | . . . . Squads Dispatched 12 | . 2 2 8 Investigation 3 | . 2 1 . Extermination . | . . . . Reinforcement 8 | . . 1 7 Assault . | . . . . Garrison 1 | . . . 1 Intercept . | . . . . Construction Impeded 1 | . . . 1 Haulers Reinforced . | . . . . Stealth | -11 -10 -9 -8 --------- Run | Scr Mat Mat Mat Distress Signals 3 | . . 1 2 Communications Jammed . | . . . . Distress Signals . | . . . . Times Spotted 119 | . 22 33 64 Peak Tracking Total 6 | . 5 4 6 Tactical Retreats 6 | . . 2 4 Traps | -11 -10 -9 -8 ------- Run | Scr Mat Mat Mat Traps Triggered 5 | . 2 2 1 Indirectly . | . . . . Trap Hack Attempts . | . . . . Triggered . | . . . . Disarmed . | . . . . Reprogrammed . | . . . . Reused . | . . . . Traps Extracted . | . . . . Installed . | . . . . Triggered . | . . . . Machines | -11 -10 -9 -8 ---------- Run | Scr Mat Mat Mat Machines Disabled . | . . . . Max in Single Turn . | . . . . Machines Sabotaged . | . . . . Garrisons Compromised . | . . . . Overloaded Fab Kills . | . . . . Fab Network Shutdowns . | . . . . Hacking | -11 -10 -9 -8 --------- Run | Scr Mat Mat Mat Machines Accessed 10 | . 5 5 . Terminals 6 | . 4 2 . Fabricators . | . . . . Repair Stations 3 | . 1 2 . Recycling Units . | . . . . Scanalyzers 1 | . . 1 . Garrison Access . | . . . . Total Hacks 32 | . 17 15 . Successful 30 | . 17 13 . Failed 2 | . . 2 . Catastrophic . | . . . . Database Lockouts . | . . . . Manual . | . . . . Terminals 12 | . 9 3 . Fabricators . | . . . . Repair Stations 18 | . 8 10 . Recycling Units . | . . . . Scanalyzers 2 | . . 2 . Garrison Access . | . . . . Terminal Hacks 12 | . 9 3 . Record 6 | . 5 1 . Alert Level 1 | . . 1 . Dispatch Records 2 | . 1 1 . Reinforcement Status 1 | . 1 . . Recall Reinforcements 1 | . 1 . . Zone Layout 1 | . 1 . . Fabricator Hacks . | . . . . Repair Station Hacks 16 | . 8 8 . Scan Component 9 | . 4 5 . Repair 7 | . 4 3 . Recycling Unit Hacks . | . . . . Scanalyzer 2 | . . 2 . Insert Component 1 | . . 1 . Analyze 1 | . . 1 . Garrison Access Hacks . | . . . . Unauthorized Hacks . | . . . . Terminals . | . . . . Fabricators . | . . . . Repair Stations . | . . . . Recycling Units . | . . . . Scanalyzers . | . . . . Garrison Access . | . . . . Data Cores Recovered . | . . . . Used . | . . . . Hacking Detections 6 | . 3 3 . Full Trace Events 3 | . 1 2 . Feedback Events 1 | . 1 . . Corruption 1 | . 1 . . Feedback Blocked . | . . . . Robot Schematics Acquired . | . . . . Robots Built . | . . . . Matter . | . . . . Time . | . . . . Total Robot Build Rating . | . . . . Part Schematics Acquired 1 | . . 1 . Parts Built . | . . . . Matter . | . . . . Time . | . . . . Total Part Build Rating . | . . . . Parts Repaired 7 | . 4 3 . Time 212 | . 116 96 . Parts Recycled . | . . . . Recycled Matter . | . . . . Retrieved Matter . | . . . . Retrieved Components . | . . . . Parts Scanalyzed 1 | . . 1 . Part Schematics Acquired 1 | . . 1 . Parts Damaged . | . . . . Bothacking | -11 -10 -9 -8 ------------ Run | Scr Mat Mat Mat Used RIF Installer . | . . . . Robots Hacked . | . . . . Non-combat . | . . . . Combat . | . . . . Robot Hacks Applied . | . . . . Relay Couplers Released . | . . . . Robots Rewired . | . . . . Allies Hacked . | . . . . Hacks Repelled . | . . . . Allies | -11 -10 -9 -8 -------- Run | Scr Mat Mat Mat Total Allies . | . . . . Largest Group . | . . . . Highest-Rated Group . | . . . . Highest-Rated Ally . | . . . . Total Orders . | . . . . Ally Attacks . | . . . . Total Damage . | . . . . Kills . | . . . . Allies Corrupted . | . . . . Allies Melted . | . . . . Intel | -11 -10 -9 -8 ------- Run | Scr Mat Mat Mat Robot Analysis Total . | . . . . Derelict Logs Recovered . | . . . . Drone Launches . | . . . . Drone Recoveries . | . . . . Exploration | -11 -10 -9 -8 ------------- Run | Scr Mat Mat Mat Turns Passed 6106 | 141 1596 2475 1894 Spaces Moved 2858 | 63 803 1192 800 Core 14 | 14 . . . Treads 2356 | 40 803 1192 321 Legs 488 | 9 . . 479 Wheels . | . . . . Hover . | . . . . Flight . | . . . . Fastest Speed 50 | 50 160 180 150 Average Speed 176 | 145 180 180 171 Slowest Speed 300 | 160 200 200 300 Overloaded Moves . | . . . . Propulsion Burnouts . | . . . . Robots Hopped . | . . . . Cave-ins Triggered . | . . . . Exploration Rate (%) 62 | 4 96 90 59 Regions Visited 3 Branch Regions . Pre-discovered Areas . | . . . . Known Exits Taken . | . . . . Unknown Exits Taken 3 | 1 1 1 . Scrap Searched . | . . . . Spaces Dug . | . . . . Terrain Destroyed 10 | . . 6 4 Melee . | . . . . Projectile . | . . . . AOE 10 | . . 6 4 Terrain Rammed . | . . . . Walls Destroyed . | . . . . Machines Disabled . | . . . . Actions | -11 -10 -9 -8 --------- Run | Scr Mat Mat Mat Total 3381 | 95 879 1359 1048 Wait 1 | . . 1 . Move 2855 | 62 802 1191 800 Hop . | . . . . Pick Up 89 | 12 19 31 27 Fast Attach . | . . . . Attach 47 | 7 4 15 21 Detach . | . . . . Swap 45 | 2 5 26 12 Drop 40 | 3 7 18 12 Fire 229 | 9 35 54 131 Melee 66 | . . 22 44 Ram 1 | . . . 1 Kick . | . . . . Crush 8 | . 7 1 . Escape Stasis . | . . . . Rewire . | . . . . Trap . | . . . . Miscellaneous . | . . . . Route ------- -11/Scrapyard -10/Materials (discovered 5 exits: *Mat x3 / [*Min x2]) -9/Materials (discovered 6 exits: [*Mat x3] / [*Min x2] / [*Sto]) -8/Materials (discovered 1 exit: [*Fac]) History --------- Turn | Location | Event 13 | -11/Scrapyard | Discovered new exit (range 15) 142 | -11/Scrapyard | Entered Materials 321 | -10/Materials | Build established: Mutant 352 | -10/Materials | Discovered new exit (range 13) 486 | -10/Materials | Discovered new exit (range 15) 574 | -10/Materials | Repaired Lgt. Treads 604 | -10/Materials | Repaired Ion Engine 632 | -10/Materials | Repaired Lgt. Treads 674 | -10/Materials | Repaired Imp. Heat Sink 1062 | -10/Materials | Discovered new exit (range 15) 1220 | -10/Materials | Discovered new exit (range 16) 1682 | -10/Materials | Discovered new exit (range 16) 1738 | -10/Materials | Entered another Materials area 1738 | -9/Materials | Evolved 2 slots: Utility x1, Weapon x1 2194 | -9/Materials | Discovered new exit (range 14) 2501 | -9/Materials | Discovered new exit (range 9) 2691 | -9/Materials | Repaired Imp. Treads 2728 | -9/Materials | Repaired Imp. Treads 2762 | -9/Materials | Repaired Hrd. Light Armor Plating 3068 | -9/Materials | Discovered new exit (range 4) 3231 | -9/Materials | Discovered new exit (range 8) 3779 | -9/Materials | Discovered new exit (range 4) 4041 | -9/Materials | Discovered new exit (range 15) 4213 | -9/Materials | Entered another Materials area 4213 | -8/Materials | Evolved 2 slots: Power x1, Propulsion x1 4327 | -8/Materials | Build established: Tank 4594 | -8/Materials | Lost 4 parts (2n2w) 4800 | -8/Materials | Lost 5 parts (2p2n1u) 5490 | -8/Materials | Discovered new exit (range 4) 5502 | -8/Materials | Build established: Scavenger-Mutant 6031 | -8/Materials | Garrison activated, responded to threat 6076 | -8/Materials | Core integrity fell below 50% 6098 | -8/Materials | Core integrity fell below 20% 6107 | -8/Materials | Destroyed by G-47 Trooper with Particle Gun Last Messages --------------- Imp. Ion Engine melted. Acquired Lgt. Treads. G-47 Trooper calls for garrison reinforcements. ALERT: Activating Garrison Access M001. Beam Rifle destroyed. Imp. Deuterium Engine destroyed. Beam Rifle destroyed. G-47 Trooper knocked back. Terminal disabled. Adv. Treads severed. Imp. Light Armor Plating destroyed. Lgt. Treads severed. Imp. Cooling System destroyed. L-31 Rogue destroyed. Lgt. Treads destroyed. Imp. Deuterium Engine destroyed. System corrupted by crushing effect (+3). Hammer destroyed. System corrupted by crushing effect (+4). Slammed into B-36 Bruiser. Map ----- +----------------------------------------------------+ | #?# #???# # #?# """ """ # | | #?# #???# #########?? """ """?# | | ### ###?#! #???????????""" """?#######+##### | | # #?# #???????????? ????# # | | # #?########?????????????? ????# """ """ # | | # #???????????????????????##?????# """ """ # | | # #??????????????????????????????# """ """ # | | # #??????????????????????????????# # | | # #??????????????????????????????# # | | # #??????????????????????????????# # | | ## = ##??????????????????????????????# %* # | | ## = #???????????????????????????????#######+### | | ## #??????????????????????????????????# | | ## #??????????????????????????????????# =% | | ## %= #????????????????###???????????????# ! % | | ## #????????????????# #############???# % % | | ## #####????????????# "" # #???#####+## | | ## **#????????????# ""S # """" ######### ## | | ## **#????????????# "" # """" # # # | | ## !!#????????##### % # """" # + | | ## !!#????????#"""# + ?# # # | | ## !!#????????#"R"# #?? ?######### ## | | ## !!#???????##" "####+######+########## # | | ## #####???????# g # | | ##+#+#######?""" # ! =%b############# ### # | | ## = ; %@g#???????????# *####+## | | #Y # #???????????# !%## | | #####???# ! #???????????# =## | | #????? ??????????# ## | | #?? "T +?????????# ## | | ! #? """ #?????????# ## | | % # #############a#?????????# ## | | # ??????????????g#?????????# ## | | # ??????????????? #?????????# ####### | | ############?????????????????#?????????^ ?????? | | ??????????????????????????????????????? ?????? | | ??????????????????????????????????????? """ ?????? | | ?????????????????????????????????????? ^""" ?????? | | ?????????????????????????????????????? """ ????? | | ?????????????????????????????????????? ??? ?????? | | ?????????????????????????????????????? ???? ?????? | | ??????????????????????????????????????????? ?????? | | ?????????????????????????????????????????????????? | | ?????????????????????????????????????????????????? | | ?????????????????????????????????????????????????? | | ?????????????????????????????????????????????????? | | ?????????????????????????????????????????????????? | | ?????????????????????????????????????????????????? | | ?????????????????????????????????????????????????? | | ?????????????????????????????????????????????????? | +----------------------------------------------------+ Best States ------------- Heat Dissipation 58 Energy Generation 27 Energy Capacity 480 Matter Stores 300 Matter Capacity 300 Sight Range 16 Terrain Scan Range 16 Terrain Scan Density 10 Armor Coverage 150 Resistance: KI 20 Resistance: TH 20 Resistance: EX 20 Resistance: EM 20 Resistance: I 20 Resistance: S 20 Resistance: P 20 Evasion (%) 40 Recoil Reduction 3 Offensive Hacking 10 Item Schematics ----------------- Adv. Beam Cannon | -9/Materials | Scanalyzed Robot Schematics ------------------ None Fabricated ------------ Nothing Alien Tech Used ----------------- None Achievements -------------- None Challenges ------------ None Game ------ Seed DisposablePointyThrower Manual? 0 Play Time 00:50:14 Cumulative 6.7 hours Start 2020.11.07 @ 19:10:27 End 2020.11.07 @ 19:58:57 Sessions 1 Manual Loads 0 Difficulty Adventurer Special Mode Halloween2020/ForbiddenLore Game No. 18 Rogue 1 Adventurer 17 Explorer 0 Win Type - Total 0 Types 0/0/0/0/0/0/0/0/0 Lore% 7 Gallery% 15 Achievement% 10 Wizard Run 0 Options --------- ASCII 0 Keyboard 0 Movement Mouse Keybinds 0 Fullscreen 1 Font 18/SmallcapsGlow Map View 76x50 Tactical HUD 0 Map Filters NONE Filters NONE Steam 1 RUN: 10652a02-9e19-49fe-9c8d-4e9b054b150a